Cogmind - Beta 11.1 @@@ ROGUE MODE // 2022.07.17 @ 22:55:36 Player: tkc Result: Destroyed by G-50 Soldier with Heavy Laser Performance ------------- Evolutions (2) 1000 Regions Visited (7) 1400 Robots Destroyed (63) 315 Value Destroyed (2393) 2393 Prototype IDs (1) 20 Alien Tech Used (0) 0 Bonus (776) 776 TOTAL SCORE: 5904 Bonus ------- High Alert Combat Kills 76 Entered Garrisons 200 Used RIF Installer 500 Cogmind --------- Core Integrity 0/550 Matter 156/300 Energy 125/125 System Corruption 1% Temperature Warm (132) Movement Core (1650) Ox32 Location -8/Materials Parts ------- > --- POWER (1) -------- Light Ion Engine > --- PROPULSION (4) --- Aluminum Leg > --- UTILITY (4) ------ Medium Storage Unit Huge Storage Unit Advanced Targeting Computer Improved Power Shielding > --- WEAPON (2) ------- Rocket Launcher > --- INVENTORY (25) --- Light Ion Engine Light Nuclear Core Improved Hover Unit Airjet Large Storage Unit Medium Matter Pod (100) Weight Redist. System Relay Coupler [NC] (29) Relay Coupler [NC] (28) Relay Coupler [Swarmer] (37) Relay Coupler [Cutter] (24) Relay Coupler [Grunt] (27) Relay Coupler [Duelist] (29) Relay Coupler [Sentry] (21) Relay Coupler [Sentry] (23) Relay Coupler [Sentry] (19) Relay Coupler [Specialist] (19) Particle Gun Ion Cannon Light Assault Rifle Light Assault Rifle Heavy Assault Rifle Grenade Launcher Scythe Peak State ------------ > --- POWER ------------ Improved Ion Engine > --- PROPULSION ------- Titanium Leg Titanium Leg Titanium Leg Armored Wheel > --- UTILITY ---------- Huge Storage Unit Experimental Sensor Array Advanced Targeting Computer Hardened Light Armor Plating > --- WEAPON ----------- Grenade Launcher Scythe > --- INVENTORY -------- Light Ion Engine Light Ion Engine Light Ion Engine Light Nuclear Core Compact Wheel Improved Hover Unit Medium Storage Unit Large Storage Unit Medium Matter Pod Weight Redist. System Improved Power Shielding EM Pulse Gun Heavy EM Pulse Gun Field Laser Ion Cannon Light Assault Rifle Light Assault Rifle Heavy Assault Rifle Battle Cannon Grenade Launcher Grenade Launcher Grenade Launcher Rocket Launcher [Rating: 35] Favorites ----------- Power Light Ion Engine Engine Light Ion Engine Propulsion Titanium Leg Treads Light Treads Leg Titanium Leg Wheel Armored Wheel Hover Unit Airjet Utility Huge Storage Unit Device Experimental Sensor Array Storage Huge Storage Unit Processor Advanced Targeting Computer Protection Improved Power Shielding Weapon Light Assault Rifle Energy Gun Field Laser Energy Cannon Ion Cannon Ballistic Gun Light Assault Rifle Ballistic Cannon Battle Cannon Launcher Grenade Launcher Slashing Weapon Scythe Build | -11 -10 -10 -9 -9 -8 -8 -8 ------- Run | Scr Mat Min Mat Min Mat Gar Mat Slots Evolved 4 | . . . 2 . 2 . . Power . | . . . . . . . . Propulsion 2 | . . . . . 2 . . Utility 2 | . . . 2 . . . . Weapon . | . . . . . . . . Parts Attached 92 | 11 17 5 19 2 2 32 4 Power 8 | 1 3 1 1 . . 2 . Engine 8 | 1 3 1 1 . . 2 . Core . | . . . . . . . . Reactor . | . . . . . . . . Propulsion 30 | 3 7 1 4 . 2 11 2 Treads 9 | 1 4 . 1 . . 3 . Leg 9 | . . 1 1 . 2 4 1 Wheel 11 | 2 3 . 2 . . 4 . Hover 1 | . . . . . . . 1 Flight . | . . . . . . . . Utility 20 | 4 4 . 8 1 . 3 . Device 3 | 2 . . . 1 . . . Storage 7 | 2 4 . . . . 1 . Processor 2 | . . . 2 . . . . Hackware . | . . . . . . . . Protection 8 | . . . 6 . . 2 . Artifact . | . . . . . . . . Weapon 34 | 3 3 3 6 1 . 16 2 Energy Gun 8 | 2 . 1 1 . . 3 1 Energy Cannon 2 | . . 1 . . . 1 . Ballistic Gun 10 | 1 3 . 3 . . 3 . Ballistic Cannon 4 | . . 1 . . . 3 . Launcher 7 | . . . . 1 . 5 1 Special Weapon . | . . . . . . . . Impact Weapon . | . . . . . . . . Slashing Weapon 3 | . . . 2 . . 1 . Piercing Weapon . | . . . . . . . . Special Melee Weapon . | . . . . . . . . Unidentified Prototypes 1 | . . . . 1 . . . Corrupted Parts 1 | . . . . . . 1 . System Corruption 1 | . . . . . . 1 . Parts Lost 29 | . 3 3 . . . 19 4 Power 5 | . 2 1 . . . 2 . Propulsion 13 | . 1 1 . . . 8 3 Utility 2 | . . . . . . 2 . Weapon 9 | . . 1 . . . 7 1 Highest Loss Streak 8 | . 2 3 . . . 8 4 To Critical Strikes . | . . . . . . . . Average Slot Usage (%) 95 | . 95 98 99 99 90 90 95 Engine 10 | . 10 13 11 11 9 8 9 Treads 6 | . 13 11 . . . 9 17 Leg 10 | . . 2 10 11 27 16 6 Wheel 10 | . 14 14 10 11 . 6 9 Device 2 | . . . . 6 9 2 . Storage 15 | . 28 28 13 11 9 10 18 Processor 9 | . . . 13 15 9 9 9 Protection 9 | . . . 16 11 9 10 9 Energy Gun 3 | . 4 6 3 7 . . 4 Energy Cannon 2 | . . 2 3 . . 4 8 Ballistic Gun 6 | . 23 6 8 . . 3 . Ballistic Cannon 2 | . . 12 3 . . 1 . Launcher 1 | . . . . 3 9 3 6 Slashing Weapon 3 | . . . 3 11 9 . . Naked Turns . | . . . . . . . . Heaviest Build 105 | 15 95 102 104 98 98 105 105 Greatest Support 57 | 26 40 20 20 12 51 57 16 Greatest Overweight (x) 29 | . 5 6 29 8 1 8 6 Average Overweight (x) 5 | . 2 5 7 8 1 5 6 Largest Inventory Capacity 25 | 8 25 25 25 25 25 25 25 Average Capacity 23 | 7 19 25 25 25 25 25 25 Most Carried 25 | 8 17 25 25 25 24 25 24 Average Carried 21 | 6 12 20 24 25 23 22 23 Final Capacity 25 | 8 25 25 25 25 25 25 25 Final Carried 25 | 8 17 24 25 25 24 24 24 Class Distribution -------------------- 75% | Mutant 24% | Scavenger-Mutant Dominant Class ---------------- Mutant | -10/Materials Mutant | -10/Mines Mutant | -9/Materials Mutant | -9/Mines Mutant | -8/Materials Scavenger-Mutant | -8/Garrison Scavenger-Mutant | -8/Materials Resources | -11 -10 -10 -9 -9 -8 -8 -8 ----------- Run | Scr Mat Min Mat Min Mat Gar Mat Matter Collected 1618 | 378 254 133 257 15 . 434 147 Remotely . | . . . . . . . . Salvage Created 1602 | 164 308 203 294 . . 487 146 Parts 135 | 23 28 10 31 . . 33 10 Haulers Intercepted . | . . . . . . . . Recyclers Shooed 3 | 1 1 . 1 . . . . Parts Field Recycled . | . . . . . . . . Retrieved Matter . | . . . . . . . . Parts Self-Destructed . | . . . . . . . . Prevented . | . . . . . . . . Kills | -11 -10 -10 -9 -9 -8 -8 -8 ------- Run | Scr Mat Min Mat Min Mat Gar Mat Combat Hostiles Destroyed 48 | . 9 4 8 . . 22 5 Guns 24 | . 9 . 8 . . 6 1 Cannons 7 | . . 4 . . . 3 . AOE 16 | . . . . . . 12 4 Classes Destroyed 11 | 3 3 . 2 . . 3 . Worker 2 | 1 1 . . . . . . Builder 4 | . 1 . 2 . . . 1 Tunneler 4 | 4 . . . . . . . Recycler 4 | 1 1 1 . . . . 1 Watcher 1 | . . . 1 . . . . Swarmer 18 | . 6 . 3 . . 6 3 Grunt 22 | . 3 4 4 . . 10 1 Duelist 1 | . . . . . . 1 . Protector 1 | . . . . . . 1 . Sentry 5 | . . . 1 . . 3 1 Demolisher 1 | . . . . . . 1 . Best Kill Streak 8 | 2 3 3 6 . . 8 7 Combat Bots Only 8 | . 3 2 6 . . 8 5 Max Kills in Single Turn 3 | 1 1 1 1 . . 3 2 Gunslinging . | . . . . . . . . Exploded 2 | . . . . . . 2 1 Melee . | . . . . . . . . Uniques/NPCs Destroyed . | . . . . . . . . Combat | -11 -10 -10 -9 -9 -8 -8 -8 -------- Run | Scr Mat Min Mat Min Mat Gar Mat Damage Taken 4146 | . 731 312 297 . 94 2272 440 Core 832 | . 139 58 66 . 32 474 63 Absorbed by Shields 90 | . . . . . . 90 . Redirected to Shielding 77 | . . . 7 . . 51 19 Core Remaining (%) 68 | 100 . 21 . 83 . . . Volleys Fired 206 | 22 50 16 25 . . 85 8 Largest 2 | 2 2 2 2 . . 2 2 Hottest 108 | 60 60 99 99 . . 108 98 Shots Fired 349 | 44 100 27 50 . . 114 14 Gun 262 | 44 100 10 38 . . 64 6 Cannon 57 | . . 17 12 . . 28 . Launcher 30 | . . . . . . 22 8 Special . | . . . . . . . . Kinetic 207 | 22 96 16 25 . . 48 . Thermal 86 | 20 4 1 25 . . 30 6 Explosive 30 | . . . . . . 22 8 Electromagnetic 26 | 2 . 10 . . . 14 . Robot Hit Streak 19 | 11 9 3 6 . . 19 9 Robot Miss Streak 5 | 2 5 2 4 . . 2 1 Penetration Max . | . . . . . . . . Secondary Targets 2 | . 1 . 1 . . . . Max Gunslinging Chain 1 | . 1 . 1 . . . . Shots Hit Robots 205 | 29 59 17 34 . . 56 10 Core Hits 126 | 10 25 7 13 . . 56 15 Critical Kills 1 | . . . . . . 1 . Critical Parts Destroyed . | . . . . . . . . Critical Strikes 6 | . . 1 1 . . 3 1 Burn 2 | . . . 1 . . . 1 Meltdown 1 | . . . . . . 1 . Blast 3 | . . 1 . . . 2 . Melee Attacks 21 | . . . 15 . . 6 . Impact . | . . . . . . . . Slashing 21 | . . . 15 . . 6 . Piercing . | . . . . . . . . Sneak Attacks 4 | . . . 4 . . . . Combat Hostiles . | . . . . . . . . Follow-up Attacks . | . . . . . . . . Damage Inflicted 4311 | 271 518 320 793 . . 1826 583 Guns 1669 | 271 504 62 343 . . 409 80 Cannons 736 | . . 258 195 . . 283 . Explosions 1637 | . . . . . . 1134 503 Melee 255 | . . . 255 . . . . Ramming 14 | . 14 . . . . . . Kinetic 1345 | 111 482 235 277 . . 240 . Thermal 877 | 160 22 23 261 . . 331 80 Explosive 1637 | . . . . . . 1134 503 Electromagnetic 183 | . . 62 . . . 121 . Impact . | . . . . . . . . Slashing 255 | . . . 255 . . . . Piercing . | . . . . . . . . Highest Corruption 1 | . . . . . . 1 1 Average Corruption 1 | . . . . . . 1 1 Corruption Purged . | . . . . . . . . Corruption Blocked . | . . . . . . . . Effects 12 | . . . . . . 12 . Message Errors 1 | . . . . . . 1 . Matter Fused 3 | . . . . . . 3 . Heat Flow Errors 1 | . . . . . . 1 . Energy Discharges 2 | . . . . . . 2 . Data Loss (minor) 2 | . . . . . . 2 . Misfires 2 | . . . . . . 2 . Alerts 1 | . . . . . . 1 . Overload Shots . | . . . . . . . . Overflow Damage 148 | . . . 88 . . 54 6 Projectiles . | . . . . . . . . Explosions 60 | . . . . . . 54 6 Melee 88 | . . . 88 . . . . Knockbacks 3 | . . 1 . . . 2 . Impact . | . . . . . . . . Kinetic 3 | . . 1 . . . 2 . Secondary . | . . . . . . . . Self-Inflicted Damage 401 | . 4 . . . . 307 90 Shots 11 | . . . . . . 8 3 Rammed 2 | . 2 . . . . . . Targets Rammed 2 | . 2 . . . . . . Kicked . | . . . . . . . . Crushed . | . . . . . . . . Highest Temperature 291 | 40 47 126 291 . . 259 145 Average Temperature 55 | 21 16 45 78 . . 63 70 Received Heat Transfer 1292 | . 249 192 135 . 27 563 126 Siege Activations . | . . . . . . . . Robots Corrupted . | . . . . . . . . Combat Hostiles . | . . . . . . . . Parts Fried . | . . . . . . . . Impact Corruptions . | . . . . . . . . Robots Melted 1 | . . . . . . 1 . Combat Hostiles 1 | . . . . . . 1 . Parts Melted . | . . . . . . . . Heat Transferred 1932 | 375 50 37 592 . . 619 259 Parts Sabotaged . | . . . . . . . . Parts Stolen . | . . . . . . . . Parts Stripped . | . . . . . . . . Power Chain Reactions . | . . . . . . . . Missiles Intercepted . | . . . . . . . . Alert | -11 -10 -10 -9 -9 -8 -8 -8 ------- Run | Scr Mat Min Mat Min Mat Gar Mat Peak Influence 909 | 30 169 133 285 74 36 909 606 Initial 442 | . 19 63 11 74 . 23 442 Average 205 | 11 70 83 74 28 9 528 459 Maximum Alert Level 3 | . . . 1 . . 3 2 Low Security (%) 68 | 100 100 100 91 100 100 8 . Level 1 10 | . . . 8 . . 28 . Level 2 12 | . . . . . . 33 100 Level 3 8 | . . . . . . 30 . Level 4 . | . . . . . . . . Level 5 . | . . . . . . . . High Security . | . . . . . . . . Max Security . | . . . . . . . . Squads Dispatched 5 | . . 1 3 . . . 1 Investigation 2 | . . 1 1 . . . . Extermination . | . . . . . . . . Reinforcement 3 | . . . 2 . . . 1 Assault . | . . . . . . . . Garrison . | . . . . . . . . Intercept . | . . . . . . . . Searches Triggered . | . . . . . . . . Construction Impeded 1 | . . . . . . . 1 Haulers Reinforced . | . . . . . . . . Active Scanning Responses . | . . . . . . . . Cargo Convoy Interrupts . | . . . . . . . . Stealth | -11 -10 -10 -9 -9 -8 -8 -8 --------- Run | Scr Mat Min Mat Min Mat Gar Mat Distress Signals 5 | . 3 . 1 . . . 1 Communications Jammed . | . . . . . . . . Distress Signals . | . . . . . . . . Times Spotted 79 | . 20 4 22 . 2 25 6 Peak Tracking Total 9 | . 5 2 7 . 2 9 7 Tactical Retreats 6 | . 3 . 2 . . 1 . Traps | -11 -10 -10 -9 -9 -8 -8 -8 ------- Run | Scr Mat Min Mat Min Mat Gar Mat Traps Triggered 6 | . 1 . 1 . . 4 . Indirectly . | . . . . . . . . Trap Hack Attempts . | . . . . . . . . Triggered . | . . . . . . . . Disarmed . | . . . . . . . . Reprogrammed . | . . . . . . . . Reused . | . . . . . . . . Traps Extracted . | . . . . . . . . Installed . | . . . . . . . . Triggered . | . . . . . . . . Machines | -11 -10 -10 -9 -9 -8 -8 -8 ---------- Run | Scr Mat Min Mat Min Mat Gar Mat Machines Disabled 8 | . . . 1 . . 5 2 Max in Single Turn 2 | . . . 1 . . 2 1 Garrison Relay 3 | . . . . . . 3 . Phase Generator 1 | . . . . . . 1 . Machines Sabotaged . | . . . . . . . . Garrisons Compromised . | . . . . . . . . Overloaded Fab Kills . | . . . . . . . . Hacking | -11 -10 -10 -9 -9 -8 -8 -8 --------- Run | Scr Mat Min Mat Min Mat Gar Mat Machines Accessed 16 | . 5 1 6 . 2 . 2 Terminals 12 | . 4 . 5 . 1 . 2 Fabricators . | . . . . . . . . Repair Stations . | . . . . . . . . Recycling Units 1 | . 1 . . . . . . Scanalyzers 1 | . . . 1 . . . . Garrison Access 1 | . . . . . 1 . . Total Hacks 42 | . 11 1 21 . 6 . 3 Successful 23 | . 6 1 12 . 3 . 1 Failed 19 | . 5 . 9 . 3 . 2 Catastrophic 3 | . 1 . 1 . . . 1 Database Lockouts . | . . . . . . . . Manual 32 | . 10 . 14 . 5 . 3 Terminals 36 | . 10 . 18 . 5 . 3 Fabricators . | . . . . . . . . Repair Stations . | . . . . . . . . Recycling Units 1 | . 1 . . . . . . Scanalyzers 3 | . . . 3 . . . . Garrison Access 1 | . . . . . 1 . . Terminal Hacks 9 | . 2 1 5 . 1 . . Record 1 | . . . 1 . . . . Part Schematic 1 | . . . 1 . . . . Open Door 1 | . . 1 . . . . . Level Access Points 1 | . 1 . . . . . . Terminal Index 3 | . 1 . 1 . 1 . . Zone Layout 2 | . . . 2 . . . . Fabricator Hacks . | . . . . . . . . Repair Station Hacks . | . . . . . . . . Recycling Unit Hacks 1 | . 1 . . . . . . Report Inventory 1 | . 1 . . . . . . Scanalyzer 3 | . . . 3 . . . . Insert Component 2 | . . . 2 . . . . Analyze 1 | . . . 1 . . . . Garrison Access Hacks 1 | . . . . . 1 . . Unlock Access 1 | . . . . . 1 . . Unauthorized Hacks 9 | . 3 . 4 . 1 . 1 Terminals 9 | . 3 . 4 . 1 . 1 Botnet 9 | . 3 . 4 . 1 . 1 Fabricators . | . . . . . . . . Repair Stations . | . . . . . . . . Recycling Units . | . . . . . . . . Scanalyzers . | . . . . . . . . Garrison Access . | . . . . . . . . Data Cores Recovered . | . . . . . . . . Used . | . . . . . . . . Hacking Detections 13 | . 4 . 6 . 1 . 2 Full Trace Events 1 | . . . 1 . . . . Feedback Events . | . . . . . . . . Feedback Blocked . | . . . . . . . . Robot Schematics Acquired . | . . . . . . . . Robots Built . | . . . . . . . . Authchips . | . . . . . . . . Time . | . . . . . . . . Total Robot Build Rating . | . . . . . . . . Part Schematics Acquired 1 | . . . 1 . . . . Parts Built . | . . . . . . . . Authchips . | . . . . . . . . Time . | . . . . . . . . Total Part Build Rating . | . . . . . . . . Parts Repaired . | . . . . . . . . Time . | . . . . . . . . Parts Recycled . | . . . . . . . . Recycled Matter . | . . . . . . . . Retrieved Matter . | . . . . . . . . Retrieved Components . | . . . . . . . . Parts Scanalyzed 1 | . . . 1 . . . . Part Schematics Acquired . | . . . . . . . . Parts Damaged . | . . . . . . . . Bothacking | -11 -10 -10 -9 -9 -8 -8 -8 ------------ Run | Scr Mat Min Mat Min Mat Gar Mat Used RIF Installer 1 | . . . . . . 1 . Robots Hacked . | . . . . . . . . Non-combat . | . . . . . . . . Combat . | . . . . . . . . Robot Hacks Applied . | . . . . . . . . Relay Couplers Released 14 | . . . . . . 14 . Machine Destruction 14 | . . . . . . 14 . Fabnet Peak Effective % . | . . . . . . . . Robots Rewired . | . . . . . . . . Allies Hacked . | . . . . . . . . Hacks Repelled . | . . . . . . . . Allies | -11 -10 -10 -9 -9 -8 -8 -8 -------- Run | Scr Mat Min Mat Min Mat Gar Mat Total Allies . | . . . . . . . . Largest Group . | . . . . . . . . Highest-Rated Group . | . . . . . . . . Highest-Rated Ally . | . . . . . . . . Total Orders . | . . . . . . . . Ally Attacks . | . . . . . . . . Total Damage . | . . . . . . . . Kills . | . . . . . . . . Allies Corrupted . | . . . . . . . . Allies Melted . | . . . . . . . . Intel | -11 -10 -10 -9 -9 -8 -8 -8 ------- Run | Scr Mat Min Mat Min Mat Gar Mat Robot Analysis Total . | . . . . . . . . Derelict Logs Recovered 3 | . . 2 . 1 . . . Drone Launches . | . . . . . . . . Drone Recoveries . | . . . . . . . . Exploration | -11 -10 -10 -9 -9 -8 -8 -8 ------------- Run | Scr Mat Min Mat Min Mat Gar Mat Turns Passed 5666 | 202 750 530 1278 1025 79 1622 180 Spaces Moved 2456 | 107 353 248 526 469 38 655 60 Core 3 | 2 . . 1 . . . . Treads 99 | . 96 2 1 . . . . Legs 224 | . . . . . 38 186 . Wheels 2130 | 105 257 246 524 469 . 469 60 Hover . | . . . . . . . . Flight . | . . . . . . . . Fastest Speed 50 | 50 100 175 190 210 200 175 190 Average Speed 193 | 98 161 190 209 210 200 203 190 Slowest Speed 1500 | 100 480 480 1500 210 200 335 190 Overloaded Moves . | . . . . . . . . Propulsion Burnouts . | . . . . . . . . Robots Hopped . | . . . . . . . . Cave-ins Triggered . | . . . . . . . . Exploration Rate (%) 43 | 5 53 46 41 98 9 87 7 Regions Visited 7 Branch Regions 2 Pre-discovered Areas . | . . . . . . . . Known Exits Taken 3 | . . 1 1 . 1 . . Unknown Exits Taken 3 | 1 1 . . 1 . . . Scrap Searched 1 | . . . . 1 . . . Spaces Dug 14 | . . . 9 . . 5 . Terrain Destroyed 175 | . . . 10 . . 132 33 Melee 9 | . . . 9 . . . . Projectile 1 | . . . 1 . . . . AOE 165 | . . . . . . 132 33 Terrain Rammed . | . . . . . . . . Walls Destroyed . | . . . . . . . . Machines Disabled . | . . . . . . . . Actions | -11 -10 -10 -9 -9 -8 -8 -8 --------- Run | Scr Mat Min Mat Min Mat Gar Mat Total 3002 | 161 445 280 632 510 41 822 111 Wait 113 | 3 11 . 19 37 . 6 37 Move 2449 | 106 352 247 525 468 38 653 60 Hop . | . . . . . . . . Pick Up 66 | 12 9 11 12 1 . 20 1 Fast Attach 21 | 9 2 . 5 1 . 3 1 Attach 27 | . 2 3 2 . 2 17 1 Detach 5 | 1 . . 1 1 1 1 . Swap 44 | 2 13 2 12 1 . 12 2 Drop 33 | 6 4 1 16 1 . 4 1 Fire 206 | 22 50 16 25 . . 85 8 Melee 21 | . . . 15 . . 6 . Ram 1 | . 1 . . . . . . Kick . | . . . . . . . . Crush 1 | . 1 . . . . . . Escape Stasis 15 | . . . . . . 15 . Rewire . | . . . . . . . . Trap . | . . . . . . . . Miscellaneous . | . . . . . . . . Route ------- -11/Scrapyard -10/Materials (discovered 4 exits: *Mat x3 / *Min) -10/Mines (discovered 3 exits: *Mat x2 / [*Exi]) -9/Materials (discovered 2 exits: *Min / [*Sto]) -9/Mines (discovered 2 exits: *Mat x2) -8/Materials -8/Garrison (discovered 3 exits: *Mat x3) -8/Materials History --------- Turn | Location | Event 20 | -11/Scrapyard | Discovered new exit (range 15) 203 | -11/Scrapyard | Entered Materials 320 | -10/Materials | Build established: Mutant 637 | -10/Materials | Identified exit to Materials 647 | -10/Materials | Discovered new exit (range 9) 826 | -10/Materials | Core integrity fell below 50% 953 | -10/Materials | Entered Mines 1016 | -10/Mines | A weapon hastily lodged in a ceiling crevice suddenly fell to the ground 1220 | -10/Mines | Deemed a non-threat by the Exiles lab entrance 1222 | -10/Mines | Discovered new exit (range 5) 1316 | -10/Mines | Met a Derelict shopkeep closing up shop 1406 | -10/Mines | Lost 3 parts (1p1n1w) 1455 | -10/Mines | Discovered exit to Materials (range 5) 1483 | -10/Mines | Entered Materials 1483 | -9/Materials | Evolved 2 slots: Utility x2 1484 | -9/Materials | Identified exit to Mines 1815 | -9/Materials | Discovered new exit (range 8) 2761 | -9/Materials | Entered Mines 3215 | -9/Mines | Found a damaged Exp. Sensor Array with a note attached 3220 | -9/Mines | Found Prototype Device 3220 | -9/Mines | Identified Exp. Sensor Array 3324 | -9/Mines | Discovered new exit (range 15) 3468 | -9/Mines | Received a Rocket Launcher from a helpful Derelict 3658 | -9/Mines | Discovered new exit (range 5) 3704 | -9/Mines | Learned Materials security intel 3786 | -9/Mines | Entered Materials 3786 | -8/Materials | Evolved 2 slots: Propulsion x2 3865 | -8/Materials | Identified exit to Garrison 3865 | -8/Materials | Entered Garrison 3979 | -8/Garrison | Triggered checkpoint 4032 | -8/Garrison | Destroyed 8 combat bots 4065 | -8/Garrison | Core integrity fell below 50% 4097 | -8/Garrison | Lost 8 parts (1p2n1u4w) 4228 | -8/Garrison | Discovered new exit (range 13) 4300 | -8/Garrison | Triggered checkpoint 4461 | -8/Garrison | Garrison Relay disabled 4606 | -8/Garrison | Triggered checkpoint 4623 | -8/Garrison | Core integrity fell below 20% 4749 | -8/Garrison | Discovered new exit (range 9) 4808 | -8/Garrison | Triggered checkpoint 4845 | -8/Garrison | Garrison Relay disabled 4846 | -8/Garrison | Lost 4 parts (1p2n1w) 5032 | -8/Garrison | Phase Generator disabled 5193 | -8/Garrison | Build established: Scavenger-Mutant 5196 | -8/Garrison | Triggered checkpoint 5244 | -8/Garrison | Triggered checkpoint 5277 | -8/Garrison | Discovered new exit (range 12) 5313 | -8/Garrison | Installed Relay Interface Framework 5400 | -8/Garrison | Garrison Relay disabled 5487 | -8/Garrison | Entered Materials 5667 | -8/Materials | Destroyed by G-50 Soldier with Heavy Laser Last Messages --------------- 05650_ S-10 Pest destroyed. 05650_ Terminal disabled. 05650_ Lgt. Treads destroyed. 05650_ Destroyed Lgt. Treads. 05653_ Lgt. Treads destroyed. 05654_ R-06 Scavenger destroyed. 05655_ The unstable cave ceiling collapses. 05657_ G-47 Trooper suffers critical hit (Burn). 05658_ K-01 Serf cleans the Atomic Centrifuge. 05658_ ALERT: Construction progress impeded, dispatching reinforcements to local area. 05659_ The unstable cave ceiling collapses. 05659_ Y-45 Defender suffers critical hit (Burn). 05660_ Com. Wheel destroyed. 05660_ U-05 Engineer destroyed. 05660_ G-47 Trooper destroyed. 05661_ K-01 Serf collects debris. 05663_ Particle Gun destroyed. 05663_ Y-45 Defender destroyed. 05666_ K-01 Serf collects debris. Map ----- +----------------------------------------------------+ | ?????????????????????????????????????????????????? | | ?????????????????????????????????????????????????? | | ?????????????????????????????????????????????????? | | ?????????????????????????????????????????????????? | | ?????????????????????????????????????????????????? | | ?????????????????????????????????????????????????? | | ?????????????????????????????????????????????????? | | ?????????????????????????????????????????????????? | | ?????????????????????????????????????????????????? | | ?????????????????????????????????????????????????? | | ?????????????????????????????????????????????????? | | ?????????????????????????????????????????????????? | | ?????????????????????????????????????????????????? | | ?????????????????????????????????????????????????? | | ????????????????????????????? ???????????????????? | | ????????????????????????????" ???????????????????? | | ???????????????????????????"" ???????????????????? | | ???????????????????????????""???#?? ###??????????? | | ??????????????????????????? ?? #? ?????????? | | ??????????????????????????#+### # ?????????? | | ??????????????????????????# # ????????? | | ?????????????????????????? k ????????? | | ????????????????????????## ????????? | | ?????????????????????#### % g ???????? | | ??????????????""" #### # ???????? | | ??????????????""" + @ %! ????????? | | ?????????? #### " "??????????? | | ?????????????????????# [ "" "??????????? | | ?????????????????????#### " """????????? | | ??????????????????####### ???????? | | ??????????????????# " ???????? | | ???????????######## ???????? | | ???????????# # ???????? | | ???????????# """ / ###+#############+#????????? | | ???????????# """ # # #????????????????? | | ???????????# """ # # #????????????????? | | ???????????# # # """ """ #????????????????? | | ???????????# ##### """ """ #????????????????? | | ???????????########???# """ """ #????????????????? | | ??????????????????????# #????????????????? | | ??????????????????????# ""T"" #????????????????? | | ??????????????????????# """"" #????????????????? | | ??????????????????????###########????????????????? | | ?????????????????????????????????????????????????? | | ?????????????????????????????????????????????????? | | | | | | | | | | | +----------------------------------------------------+ Best States ------------- Heat Dissipation 31 Energy Generation 12 Energy Capacity 265 Matter Stores 300 Matter Capacity 300 Sight Range 16 Robot Scan Range 20 Terrain Scan Density 10 Armor Coverage 225 Power Shielding 66 Evasion (%) 40 Targeting Accuracy 8 Recoil Reduction 2 Item Schematics ----------------- Core Shielding | -9/Materials | Hacked Robot Schematics ------------------ None Fabricated ------------ Nothing Alien Tech Used ----------------- None Achievements -------------- None Challenges ------------ None Game ------ Seed HugeSingularityWings Manual? 0 Play Time 00:59:55 Cumulative 69.7 hours Start 2022.07.17 @ 21:54:11 End 2022.07.17 @ 22:55:36 Sessions 1 Manual Loads 0 Difficulty Rogue Special Mode None Game No. 48 Rogue 47 Adventurer 0 Explorer 1 Win Type - Total 0 Types 0/0/0/0/0/0/0/0/0 Lore% 20 Gallery% 32 Achievement% 24 Wizard Run 0 Options --------- ASCII 0 Keyboard 0 Movement Mouse Keybinds 0 Fullscreen 1 Font 18/X11 Map View 76x50 Tactical HUD 1 Map Filters NONE Filters NONE Steam 1 RUN: 16ea9d91-47ae-4705-a8bf-037d206107fd